fUSD/lending_fUSD_20241106
["ID","MTS","AMOUNT","RATE_DAILY","PERIOD"]
[341505713,1730933445406,-150.0,0.00041532,2]
[341505714,1730933445416,-150.0,0.0004154,2]
[341505715,1730933445426,-150.0,0.0004154,2]
[341505716,1730933445436,-150.0,0.00041556,2]
[341505717,1730933445447,-150.0,0.00041561,7]
[341505718,1730933445456,-1107.85942885,0.00041569,120]
[341505719,1730933445503,-6392.14057115,0.00041569,120]
[341505720,1730933445514,-11312.72467625,0.0004157,5]
[341505721,1730933445526,-8907.4960001,0.0004157,5]
[341505744,1730933446835,-500.0,0.00040621,2]
[341505746,1730933446846,-150.0,0.0004068,47]
[341505748,1730933446855,-150.0,0.00040995,30]
[341505750,1730933446864,-1270.29342928,0.0004157,5]
[341505792,1730933447280,-96.16727189,0.0004157,5]
[341505794,1730933447292,-458.14384036,0.0004157,5]
[341505797,1730933447304,-1369.34357485,0.0004157,5]
[341505807,1730933447393,-5599.92790527,0.0004157,5]
[341505809,1730933447405,-3170.3224686,0.0004157,5]
[341505811,1730933447414,-1201.33794467,0.0004157,5]
[341505813,1730933447423,-150.26,0.0004157,2]
[341505815,1730933447432,-33393.02952164,0.0004158,2]
[341505817,1730933447441,-150.0,0.00041588,2]
[341505819,1730933447451,-150.0,0.00041597,2]
[341505821,1730933447460,-150.0,0.00041608,2]
[341505823,1730933447469,-150.0,0.00041611,2]
[341505824,1730933447478,-150.0,0.00041613,2]
[341505826,1730933447487,-150.0,0.00041615,7]
[341505828,1730933447497,-500.0,0.00041643,30]
[341505830,1730933447506,-150.0,0.00041646,2]
[341505832,1730933447515,-150.0,0.0004169,2]
[341505834,1730933447524,-150.0,0.00041698,2]
[341505836,1730933447533,-150.0,0.0004171,2]
[341505838,1730933447543,-150.0,0.00041715,2]
[341505840,1730933447555,-807.98773154,0.0004172,18]
[341505848,1730933447627,-601.24046146,0.0004172,18]
[341505850,1730933447636,-150.0,0.00041725,2]
[341505851,1730933447647,-150.0,0.00041734,2]
[341505853,1730933447656,-150.0,0.00041738,7]
[341505855,1730933447665,-467.25816833,0.0004174,18]
[341505858,1730933447683,-500.0,0.0004068,47]
[341505860,1730933447694,-257.013101,0.0004174,18]
[341505864,1730933447725,-150.0,0.00040706,2]
[341505866,1730933447736,-275.72873067,0.0004174,18]
[341505868,1730933447745,-150.0,0.00041741,2]
[341505870,1730933447755,-150.0,0.00041743,7]
[341505872,1730933447766,-150.0,0.00041749,2]
[341505874,1730933447776,-150.0,0.00041749,2]
[341505876,1730933447785,-150.0,0.00041754,7]
[341505878,1730933447794,-150.0,0.00041755,2]
[341505879,1730933447804,-1201.33794467,0.00041759,5]
[341505881,1730933447814,-150.0,0.0004176,7]
[341505883,1730933447824,-1000.0,0.0004176,18]
[341505885,1730933447833,-150.0,0.00041768,2]
[341505887,1730933447843,-150.0,0.00041768,2]
[341505889,1730933447853,-14951.36396466,0.00041769,5]
[341506348,1730933706204,156.04,0.0001729,2]
[341506350,1730933736890,178.28,0.00015342,2]
[341506351,1730933743941,169.776,0.00018189,2]
[341506361,1730934254273,151.9,0.00015342,2]
[341506363,1730934398285,150.0,0.0002043,2]
[341506364,1730934447097,-172.45,0.00029213,2]
[341506365,1730934447124,-795.1555,0.0003,2]
[341506366,1730934447150,-795.1555,0.0003,2]
[341506367,1730934447171,-220.89775,0.0003,2]
[341506368,1730934447191,-220.89775,0.0003,2]
[341506369,1730934447212,-500.0,0.00031,30]
[341506370,1730934447234,-515.6960998,0.00031,30]
[341506371,1730934447256,-1089.0,0.00032127,2]
[341506372,1730934447277,-187.61537855,0.00032877,2]
[341506373,1730934447297,-500.0,0.00033655,120]
[341506374,1730934447319,-150.0,0.0003378,2]
[341506375,1730934447338,-670.89,0.0003378,10]
[341506376,1730934447371,-409.72,0.00034074,2]
[341506377,1730934447401,-12857.826549,0.00034675,2]
[341506378,1730934447432,-810.83996308,0.00034849,120]
[341506379,1730934447463,-361.31,0.00035223,2]
[341506380,1730934447498,-200.0,0.00035405,2]
[341506381,1730934447528,-200.0,0.00035416,2]
[341506382,1730934447559,-200.0,0.00035417,2]
[341506383,1730934447586,-200.0,0.00035439,2]
[341506384,1730934447615,-200.0,0.00035491,2]
[341506385,1730934447646,-1832.93,0.000356,2]
[341506386,1730934447677,-152.0,0.00035667,3]
[341506387,1730934447703,-500.0,0.00035755,120]
[341506388,1730934447730,-361.31,0.00035789,2]
[341506389,1730934447758,-250.0,0.0003593,120]
[341506390,1730934447787,-270.65,0.0003593,120]
[341506391,1730934447814,-154.27,0.00036053,2]
[341506392,1730934447847,-200.0,0.00036085,2]
[341506393,1730934447873,-192.63,0.00036109,120]
[341506394,1730934447903,-250.0,0.00036118,2]
[341506395,1730934447930,-13350.78,0.00036142,2]
[341506396,1730934447957,-161.4,0.00036148,2]
[341506397,1730934447983,-212.96,0.00036185,2]
[341506398,1730934448010,-400.0,0.00036227,2]
[341506399,1730934448038,-409.72,0.00036338,2]
[341506400,1730934448070,-361.31,0.00036355,2]
[341506401,1730934448095,-1973.019,0.00036496,45]
[341506402,1730934448124,-152.0,0.00036496,4]
[341506403,1730934448154,-152.426,0.00036496,45]
[341506404,1730934448179,-254.25,0.000365,7]
[341506405,1730934448206,-700.0,0.00036644,13]
[341506406,1730934448233,-700.0,0.00036644,13]
[341506407,1730934448259,-700.0,0.00036644,13]
[341506408,1730934448283,-700.0,0.00036644,13]
[341506409,1730934448309,-700.0,0.00036644,13]
[341506410,1730934448337,-700.0,0.00036658,13]
[341506411,1730934448363,-700.0,0.00036658,13]
[341506412,1730934448393,-700.0,0.00036658,13]
[341506413,1730934448422,-700.0,0.00036658,13]
[341506414,1730934448449,-700.0,0.00036658,13]
[341506415,1730934448479,-153.71,0.000368,31]
[341506416,1730934448509,-153.71,0.000368,31]
[341506417,1730934448540,-153.71,0.000368,31]
[341506418,1730934448568,-361.31,0.00036921,2]
[341506419,1730934448596,-152.0,0.00037325,5]
[341506420,1730934448625,-361.31,0.00037487,2]
[341506421,1730934448662,-300.0,0.00037729,2]
[341506422,1730934448688,-1197.41257964,0.00037977,4]
[341506423,1730934448716,-361.31,0.00038053,2]
[341506424,1730934448746,-152.0,0.00038154,6]
[341506425,1730934448773,-251.36633836,0.00038256,2]
[341506426,1730934448801,-1006.18,0.000383,28]
[341506427,1730934448828,-867.44,0.00038346,3]
[341506428,1730934448855,-288.45,0.00038346,10]
[341506429,1730934448884,-354.78,0.00038356,14]
[341506430,1730934448911,-500.0,0.00038356,14]
[341506431,1730934448938,-511.81,0.00038356,14]
[341506432,1730934448964,-500.0,0.00038356,14]
[341506433,1730934448990,-500.0,0.00038356,14]
[341506434,1730934449017,-500.0,0.00038356,14]
[341506435,1730934449043,-500.0,0.00038356,14]
[341506436,1730934449073,-500.0,0.00038356,14]
[341506437,1730934449099,-500.0,0.00038356,14]
[341506438,1730934449125,-500.0,0.00038356,14]
[341506439,1730934449156,-500.0,0.00038356,14]
[341506440,1730934449182,-500.0,0.00038356,14]
[341506441,1730934449208,-500.0,0.00038356,14]
[341506442,1730934449234,-171.61068874,0.00038356,14]
[341506443,1730934449259,-500.0,0.00038356,14]
[341506444,1730934449286,-500.0,0.00038356,14]
[341506445,1730934449312,-527.26035199,0.00038356,14]
[341506446,1730934449338,-500.0,0.00038356,14]
[341506447,1730934449365,-500.0,0.00038356,14]
[341506448,1730934449395,-500.0,0.00038356,14]
[341506449,1730934449422,-500.0,0.00038356,14]
[341506450,1730934449449,-500.0,0.00038356,14]
[341506451,1730934449476,-500.0,0.00038356,14]
[341506452,1730934449503,-619.22,0.00038356,14]
[341506453,1730934449529,-500.0,0.00038356,14]
[341506454,1730934449555,-500.0,0.00038356,14]
[341506455,1730934449582,-500.0,0.00038356,14]
[341506456,1730934449607,-500.0,0.00038356,14]
[341506457,1730934449631,-500.0,0.00038356,14]
[341506458,1730934449658,-500.0,0.00038356,14]
[341506459,1730934449682,-500.0,0.00038356,14]
[341506460,1730934449706,-500.0,0.00038356,14]
[341506461,1730934449731,-500.0,0.00038356,14]
[341506462,1730934449757,-500.0,0.00038356,14]
[341506463,1730934449781,-500.0,0.00038356,14]
[341506464,1730934449806,-500.0,0.00038356,14]
[341506465,1730934449830,-500.0,0.00038356,14]
[341506466,1730934449855,-500.0,0.00038356,14]
[341506467,1730934449881,-500.0,0.00038356,14]
[341506468,1730934449910,-500.0,0.00038356,14]
[341506469,1730934449934,-500.0,0.00038356,14]
[341506470,1730934449959,-1292.66,0.00038356,14]
[341506471,1730934449984,-500.0,0.00038356,14]
[341506472,1730934450008,-500.0,0.00038356,14]
[341506473,1730934450032,-500.0,0.00038356,14]
[341506474,1730934450060,-500.0,0.00038356,14]
[341506475,1730934450083,-500.0,0.00038356,14]
[341506476,1730934450108,-500.0,0.00038356,14]
[341506477,1730934450135,-500.0,0.00038356,14]
[341506478,1730934450161,-500.0,0.00038356,14]
[341506479,1730934450187,-500.0,0.00038356,14]
[341506480,1730934450212,-500.0,0.00038356,14]
[341506481,1730934450233,-500.0,0.00038356,14]
[341506482,1730934450254,-500.0,0.00038356,14]
[341506483,1730934450275,-500.0,0.00038356,14]
[341506484,1730934450296,-500.0,0.00038356,14]
[341506485,1730934450316,-542.09,0.00038356,14]
[341506486,1730934450895,-408.73295388,0.00038356,14]
[341506502,1730934631448,-1649.63,0.000356,2]
[341506503,1730934631458,-1000.0,0.00037612,2]
[341506504,1730934631468,-192.39,0.00037679,120]
[341506505,1730934631478,-200.0,0.00037708,7]
[341506506,1730934631487,-153.71,0.000378,31]
[341506507,1730934631497,-153.71,0.000378,31]
[341506508,1730934631506,-153.71,0.000378,31]
[341506509,1730934631516,-59951.5448,0.00038256,2]
[341506510,1730934631525,-167.5775589,0.00038256,2]
[341506511,1730934631535,-91.26704612,0.00038356,14]
[341506512,1730934631545,-500.0,0.00038356,14]
[341506513,1730934631556,-500.0,0.00038356,14]
[341506514,1730934631565,-500.0,0.00038356,14]
[341506515,1730934631576,-500.0,0.00038356,14]
[341506516,1730934631793,-1008.12,0.00038356,14]
[341506517,1730934631804,-504.52366904,0.00038356,14]
[341506518,1730934631813,-500.0,0.00038356,14]
[341506519,1730934631823,-788.5,0.00038356,14]
[341506520,1730934631833,-500.0,0.00038356,14]
[341506521,1730934631843,-500.0,0.00038356,14]
[341506522,1730934631852,-500.0,0.00038356,14]
[341506523,1730934631862,-500.0,0.00038356,14]
[341506524,1730934631871,-1205.55,0.00038356,14]
[341506525,1730934631881,-500.0,0.00038356,14]
[341506526,1730934631890,-500.0,0.00038356,14]
[341506527,1730934631900,-500.0,0.00038356,14]
[341506528,1730934631909,-500.0,0.00038356,14]
[341506529,1730934631919,-500.0,0.00038356,14]
[341506530,1730934631928,-519.02614892,0.00038356,14]
[341506531,1730934631938,-640.11,0.00038356,14]
[341506532,1730934631947,-500.0,0.00038356,14]
[341506533,1730934631957,-264.28174442,0.00038356,14]
[341506534,1730934631966,-500.0,0.00038356,14]
[341506536,1730934631976,-500.0,0.00038356,14]
[341506538,1730934631985,-500.0,0.00038356,14]
[341506540,1730934631995,-500.0,0.00038356,14]
[341506542,1730934632005,-500.0,0.00038356,14]
[341506543,1730934632014,-150.0,0.00038356,14]
[341506545,1730934632023,-500.0,0.00038356,14]
[341506547,1730934632032,-500.0,0.00038356,14]
[341506549,1730934632042,-500.0,0.00038356,14]
[341506551,1730934632053,-500.0,0.00038356,14]
[341506553,1730934632062,-500.0,0.00038356,14]
[341506555,1730934632072,-551.38,0.00038356,14]
[341506557,1730934632082,-1228.6,0.00038356,14]
[341506559,1730934632091,-739.11,0.00038356,14]
[341506561,1730934632100,-500.0,0.00038356,14]
[341506563,1730934632111,-500.0,0.00038356,14]
[341506565,1730934632122,-500.0,0.00038356,14]
[341506567,1730934632131,-500.0,0.00038356,14]
[341506569,1730934632141,-500.0,0.00038356,14]
[341506571,1730934632150,-2433.7,0.00038356,14]
[341506573,1730934632161,-500.0,0.00038356,14]
[341506575,1730934632170,-500.0,0.00038356,14]
[341506577,1730934632179,-1764.13,0.00038356,14]
[341506579,1730934632191,-500.0,0.00038356,14]
[341506581,1730934632200,-500.0,0.00038356,14]
[341506583,1730934632210,-502.37732073,0.00038356,14]
[341506585,1730934632219,-500.0,0.00038356,14]
[341506586,1730934632228,-1500.32,0.00038356,14]
[341506588,1730934632238,-1034.49,0.00038356,14]
[341506590,1730934632247,-500.0,0.00038356,14]
[341506592,1730934632256,-540.18,0.00038356,14]
[341506594,1730934632265,-553.26127998,0.00038356,14]
[341506596,1730934632275,-2216.18,0.00038356,14]
[341506598,1730934632284,-500.0,0.00038356,14]
[341506600,1730934632293,-500.0,0.00038356,14]
[341506602,1730934632303,-1937.89,0.00038356,14]
[341506604,1730934632313,-500.0,0.00038356,14]
[341506606,1730934632323,-500.0,0.00038356,14]
[341506608,1730934632332,-913.23,0.00038356,14]
[341506610,1730934632342,-500.0,0.00038356,14]
[341506612,1730934632352,-500.0,0.00038356,14]
[341506614,1730934632361,-500.0,0.00038356,14]
[341506615,1730934632371,-1073.65,0.00038356,14]
[341506617,1730934632381,-1657.31,0.00038356,14]
[341506619,1730934632390,-500.0,0.00038356,14]
[341506621,1730934632400,-627.27,0.00038356,14]
[341506623,1730934632410,-1309.94,0.00038356,14]
[341506625,1730934632419,-500.0,0.00038356,14]
[341506627,1730934632429,-586.79820668,0.00038356,14]
[341506629,1730934632439,-828.1,0.00038356,14]
[341506631,1730934632448,-633.9,0.00038356,14]
[341506632,1730934632458,-500.0,0.00038356,14]
[341506633,1730934632467,-500.0,0.00038356,14]
[341506634,1730934632477,-1207.23,0.00038356,14]
[341506635,1730934632487,-500.0,0.00038356,14]
[341506636,1730934632496,-547.85,0.00038356,14]
[341506637,1730934632505,-504.52,0.00038356,14]
[341506638,1730934632516,-500.0,0.00038356,14]
[341506639,1730934632525,-829.07,0.00038356,14]
[341506640,1730934632535,-784.92,0.00038356,14]
[341506641,1730934632544,-572.57460373,0.00038356,14]
[341506642,1730934632555,-1178.36762571,0.00038356,14]
[341506643,1730934632569,-176.77237429,0.00038356,14]
[341506644,1730934632579,-545.76996144,0.00038356,14]
[341506645,1730934632594,-503.97003856,0.00038356,14]
[341506646,1730934632604,-1066.47,0.00038356,14]
[341506647,1730934632614,-750.74,0.00038356,14]
[341506648,1730934632623,-1760.53,0.00038356,14]
[341506649,1730934632633,-163.91292,0.00038356,2]
[341506650,1730934632642,-167.57755888,0.00038393,2]
[341506651,1730934632652,-150.110708,0.00038398,13]
[341506652,1730934632662,-161.110707,0.00038498,14]
[341506653,1730934632671,-167.57755888,0.00038529,2]
[341506654,1730934632680,-307.23128301,0.00038529,2]
[341506655,1730934632689,-18576.17794627,0.0003853,2]
[341506656,1730934632701,-320.7576442,0.0003853,2]
[341506657,1730934632712,-1528.33579149,0.0003853,2]
[341506658,1730934632723,-2843.77731804,0.0003853,2]
[341506659,1730934632733,-660.2983,0.0003853,2]
[341506660,1730934632743,-5606.69958229,0.0003853,2]
[341506661,1730934632867,-3656.52207715,0.0003853,2]
[341506662,1730934632879,-6479.35967242,0.0003853,2]
[341506663,1730934632890,-300.3,0.0003853,2]
[341506664,1730934632913,-12726.90636814,0.0003853,2]
[341506665,1730934632923,-500.0,0.0003853,2]
[341506666,1730934632933,-200.0,0.0003853,120]
[341506667,1730934632942,-3026.9967,0.0003853,120]
[341506668,1730934632952,-409.72,0.00038602,2]
[341506669,1730934632962,-500.0,0.00038618,15]
[341506670,1730934632971,-648.67411105,0.00038618,15]
[341506671,1730934632981,-500.0,0.00038618,15]
[341506672,1730934632990,-500.0,0.00038618,15]
[341506673,1730934633000,-361.31,0.00038619,2]
[341506674,1730934633010,-63425.5874985,0.00038619,3]
[341506675,1730934633019,-173.65589254,0.00038619,2]
[341506676,1730934633029,-500.0,0.0003862,14]
[341506677,1730934633039,-591.65742803,0.0003862,14]
[341506678,1730934633052,-408.34257197,0.0003862,14]
[341506679,1730934633062,-500.0,0.0003862,14]
[341506680,1730934633072,-1741.72,0.0003862,14]
[341506681,1730934633081,-1771.31,0.0003862,14]
[341506682,1730934633091,-3534.09,0.0003862,14]
[341506683,1730934633101,-1689.02,0.0003862,14]
[341506684,1730934633114,-776.26,0.0003862,14]
[341506685,1730934633124,-809.68,0.0003862,14]
[341506686,1730934633134,-3090.57,0.0003862,14]
[341506687,1730934633143,-2607.11,0.0003862,14]
[341506688,1730934633153,-2409.20226354,0.0003862,14]
[341506689,1730934633165,-466.42930039,0.0003862,14]
[341506690,1730934633177,-950.09843607,0.0003862,14]
[341506691,1730934633187,-613.66,0.0003862,14]
[341506692,1730934633198,-500.0,0.0003862,14]
[341506693,1730934633208,-743.15812893,0.0003862,14]
[341506694,1730934633224,-551.96187107,0.0003862,14]
[341506695,1730934633234,-2526.59744938,0.0003862,14]
[341506696,1730934633246,-2712.50255062,0.0003862,14]
[341506697,1730934633256,-500.0,0.0003862,14]
[341506698,1730934633265,-500.0,0.0003862,14]
[341506699,1730934633275,-848.5295097,0.0003862,14]
[341506700,1730934633287,-1536.0304903,0.0003862,14]
[341506701,1730934633297,-1626.67,0.0003862,14]
[341506702,1730934633308,-931.04,0.0003862,14]
[341506703,1730934633319,-500.0,0.0003862,14]
[341506704,1730934633329,-29494.31,0.0003862,14]
[341506705,1730934633339,-500.0,0.0003862,14]
[341506706,1730934633579,-500.0,0.0003862,14]
[341506707,1730934633607,-500.0,0.0003862,14]
[341506708,1730934633617,-31712.7937492,0.0003862,3]
[341506709,1730934633628,-199.5219225,0.0003862,2]
[341506710,1730934633638,-500.0,0.00038629,14]
[341506711,1730934633648,-500.0,0.00038629,14]
[341506712,1730934633657,-500.0,0.00038629,14]
[341506713,1730934633668,-500.0,0.00038629,14]
[341506714,1730934633678,-500.0,0.00038629,14]
[341506715,1730934633688,-500.0,0.00038629,14]
[341506716,1730934633698,-500.0,0.00038629,14]
[341506717,1730934633708,-237.73792335,0.00038629,14]
[341506718,1730934633718,-500.0,0.00038629,14]
[341506719,1730934633728,-500.0,0.00038629,14]
[341506720,1730934633738,-890.59,0.00038629,14]
[341506721,1730934633748,-500.0,0.00038629,14]
[341506722,1730934633757,-500.0,0.00038629,14]
[341506723,1730934633767,-500.0,0.00038629,14]
[341506724,1730934633777,-500.0,0.00038629,14]
[341506725,1730934633786,-500.0,0.00038629,14]
[341506726,1730934633796,-500.0,0.00038629,14]
[341506727,1730934633812,-500.0,0.00038629,14]
[341506728,1730934633823,-500.0,0.00038629,14]
[341506729,1730934633832,-500.0,0.00038629,14]
[341506730,1730934633843,-500.0,0.00038629,14]
[341506731,1730934633853,-500.0,0.00038629,14]
[341506732,1730934633864,-507.17726969,0.00038629,14]
[341506733,1730934633875,-500.0,0.00038629,14]
[341506734,1730934633885,-500.0,0.00038629,14]
[341506735,1730934633895,-500.0,0.00038629,14]
[341506736,1730934633904,-501.4119361,0.00038629,14]
[341506737,1730934633915,-500.0,0.00038629,14]
[341506738,1730934633925,-500.0,0.00038629,14]
[341506739,1730934633935,-500.0,0.00038629,14]
[341506740,1730934633945,-500.0,0.00038629,14]
[341506741,1730934633954,-500.0,0.00038629,14]
[341506742,1730934633964,-500.0,0.00038629,14]
[341506743,1730934633974,-542.11,0.00038629,14]
[341506744,1730934633984,-500.0,0.00038629,14]
[341506745,1730934633994,-500.0,0.00038629,14]
[341506746,1730934634004,-509.43046459,0.00038629,14]
[341506747,1730934634014,-500.0,0.00038629,14]
[341506748,1730934634024,-500.0,0.00038629,14]
[341506749,1730934634033,-500.0,0.00038629,14]
[341506750,1730934634043,-500.0,0.00038629,14]
[341506751,1730934634054,-500.0,0.00038629,14]
[341506752,1730934634064,-500.0,0.00038629,14]
[341506753,1730934634075,-500.0,0.00038629,14]
[341506754,1730934634086,-500.0,0.00038629,14]
[341506755,1730934634096,-500.0,0.00038629,14]
[341506756,1730934634106,-500.0,0.00038629,14]
[341506757,1730934634120,-500.0,0.00038629,14]
[341506758,1730934634129,-500.0,0.00038629,14]
[341506759,1730934634139,-500.0,0.00038629,14]
[341506760,1730934634149,-517.13,0.00038629,14]
[341506761,1730934634160,-500.0,0.00038629,14]
[341506762,1730934634171,-500.0,0.00038629,14]
[341506763,1730934634180,-500.0,0.00038629,14]
[341506764,1730934634191,-500.0,0.00038629,14]
[341506765,1730934634201,-500.0,0.00038629,14]
[341506766,1730934634212,-500.0,0.00038629,14]
[341506767,1730934634222,-500.0,0.00038629,14]
[341506768,1730934634231,-500.0,0.00038629,14]
[341506769,1730934634241,-500.0,0.00038629,14]
[341506770,1730934634251,-500.0,0.00038629,14]
[341506771,1730934634260,-517.62598123,0.00038629,14]
[341506772,1730934634271,-500.0,0.00038629,14]
[341506773,1730934634281,-500.0,0.00038629,14]
[341506774,1730934634292,-500.0,0.00038629,14]
[341506775,1730934634302,-500.0,0.00038629,14]
[341506776,1730934634312,-500.0,0.00038629,14]
[341506777,1730934634322,-1046.87,0.00038629,89]
[341506778,1730934634332,-792.2,0.00038629,14]
[341506779,1730934634342,-500.0,0.00038629,14]
[341506780,1730934634352,-500.0,0.00038629,14]
[341506781,1730934634362,-500.0,0.00038629,14]
[341506782,1730934634372,-500.0,0.00038629,14]
[341506783,1730934634382,-677.22,0.00038629,14]
[341506784,1730934634392,-500.0,0.00038629,14]
[341506785,1730934634402,-500.0,0.00038629,14]
[341506786,1730934634412,-501.33,0.00038629,14]
[341506787,1730934634421,-500.0,0.00038629,14]
[341506788,1730934634431,-500.0,0.00038629,14]
[341506789,1730934634440,-663.64,0.00038629,14]
[341506790,1730934634450,-507.11565732,0.00038629,14]
[341506791,1730934634461,-500.0,0.00038629,14]
[341506792,1730934634471,-500.0,0.00038629,14]
[341506793,1730934634482,-500.0,0.00038629,14]
[341506794,1730934634492,-500.0,0.00038629,14]
[341506795,1730934634501,-500.0,0.00038629,14]
[341506796,1730934634511,-500.0,0.00038629,14]
[341506797,1730934634522,-727.62,0.00038629,14]
[341506798,1730934634532,-834.9,0.00038629,14]
[341506799,1730934634542,-500.0,0.00038629,14]
[341506800,1730934634553,-500.0,0.00038629,14]
[341506801,1730934634563,-1443.63,0.00038629,14]
[341506802,1730934634574,-500.0,0.00038629,14]
[341506803,1730934634583,-717.69,0.00038629,14]
[341506804,1730934634595,-1123.18,0.00038629,14]
[341506805,1730934634604,-500.0,0.00038629,14]
[341506806,1730934634614,-832.36,0.00038629,14]
[341506807,1730934634624,-500.0,0.00038629,14]
[341506808,1730934634634,-500.0,0.00038629,14]
[341506809,1730934634643,-500.0,0.00038629,14]
[341506810,1730934634654,-500.0,0.00038629,14]
[341506811,1730934634665,-1652.84,0.00038629,14]
[341506812,1730934634676,-510.38314754,0.00038629,14]
[341506813,1730934634686,-500.0,0.00038629,14]
[341506814,1730934634696,-500.0,0.00038629,14]
[341506815,1730934634705,-500.0,0.00038629,14]
[341506816,1730934634715,-500.0,0.00038629,14]
[341506817,1730934634724,-603.59,0.00038629,14]
[341506818,1730934634734,-500.0,0.00038629,14]
[341506819,1730934634744,-500.0,0.00038629,14]
[341506820,1730934634754,-500.0,0.00038629,14]
[341506821,1730934634764,-500.0,0.00038629,14]
[341506822,1730934634774,-500.0,0.00038629,14]
[341506823,1730934634784,-500.0,0.00038629,14]
[341506824,1730934634793,-1178.22,0.00038629,14]
[341506825,1730934634805,-500.0,0.00038629,14]
[341506826,1730934634815,-500.0,0.00038629,14]
[341506827,1730934634824,-757.08,0.00038629,14]
[341506828,1730934634834,-500.0,0.00038629,14]
[341506829,1730934634845,-500.0,0.00038629,14]
[341506830,1730934634855,-500.0,0.00038629,14]
[341506831,1730934634865,-500.0,0.00038629,14]
[341506832,1730934634875,-500.0,0.00038629,14]
[341506833,1730934634884,-500.0,0.00038629,14]
[341506834,1730934634895,-500.0,0.00038629,14]
[341506835,1730934634905,-500.0,0.00038629,14]
[341506836,1730934634915,-500.0,0.00038629,14]
[341506837,1730934634924,-500.0,0.00038629,14]
[341506838,1730934634934,-2340.13,0.00038629,14]
[341506839,1730934634944,-500.0,0.00038629,14]
[341506840,1730934634954,-508.82175518,0.00038629,14]
[341506841,1730934634963,-2276.31,0.00038629,14]
[341506842,1730934634973,-500.0,0.00038629,14]
[341506843,1730934634983,-585.25,0.00038629,14]
[341506844,1730934634993,-500.0,0.00038629,14]
[341506845,1730934635002,-500.0,0.00038629,14]
[341506846,1730934635012,-500.0,0.00038629,14]
[341506847,1730934635022,-500.0,0.00038629,14]
[341506848,1730934635031,-2655.35,0.00038629,14]
[341506849,1730934635041,-500.0,0.00038629,14]
[341506850,1730934635053,-500.0,0.00038629,14]
[341506851,1730934635063,-500.0,0.00038629,14]
[341506852,1730934635073,-548.13,0.00038629,14]
[341506853,1730934635083,-500.0,0.00038629,14]
[341506854,1730934635093,-566.63,0.00038629,14]
[341506855,1730934635102,-500.0,0.00038629,14]
[341506856,1730934635116,-500.0,0.00038629,14]
[341506857,1730934635126,-500.0,0.00038629,14]
[341506858,1730934635137,-246.284494,0.00038629,14]
[341506859,1730934635146,-189.951785,0.00038629,14]
[341506860,1730934635157,-500.0,0.00038629,14]
[341506861,1730934635167,-505.88,0.00038629,14]
[341506862,1730934635177,-157.209229,0.00038629,14]
[341506863,1730934635188,-2598.71,0.00038629,14]
[341506864,1730934635198,-500.0,0.00038629,14]
[341506865,1730934635208,-153.536664,0.00038629,14]